Cogmind - Beta 17.1 @@@ ROGUE MODE // 2026.09.11 @ 21:51:14 Player: cel Result: Destroyed by Y-45 Defender with Heavy Assault Rifle Performance ------------- Evolutions (2) 1000 Regions Visited (4) 800 Robots Destroyed (38) 190 Value Destroyed (687) 687 Prototype IDs (0) 0 Alien Tech Used (0) 0 Bonus (200) 200 TOTAL SCORE: 2877 Bonus ------- Pacifist 200 Cogmind --------- Core Integrity 0/550 Matter 230/300 Energy 58/300 System Corruption 2% Temperature Cool (9) Movement Core (250) Ox4 Location -8/Materials Parts ------- > --- POWER (1) -------- (None) > --- PROPULSION (4) --- (None) > --- UTILITY (4) ------ Small Storage Unit Large Battery Utility Shielding > --- WEAPON (2) ------- Shock Bomb Launcher > --- INVENTORY (8) ---- Heavy Ion Engine Medium Matter Pod (46) Shock Bomb Launcher Peak State ------------ > --- POWER ------------ Improved Ion Engine > --- PROPULSION ------- Aluminum Leg Aluminum Leg Titanium Leg Titanium Leg > --- UTILITY ---------- Small Storage Unit Propulsion Shielding Utility Shielding Medium Armor Plating > --- WEAPON ----------- Beam Rifle Heavy Assault Rifle > --- INVENTORY -------- Light Ion Engine Heavy Ion Engine Large Battery Medium Matter Pod Light Armor Plating [Rating: 19] Favorites ----------- Power Light Ion Engine Engine Light Ion Engine Propulsion Aluminum Leg Leg Aluminum Leg Utility Small Storage Unit Storage Small Storage Unit Protection Propulsion Shielding Weapon Grenade Launcher Energy Gun Beam Rifle Ballistic Gun Light Assault Rifle Launcher Grenade Launcher Build | -11 -10 -9 -9 -8 ------- Run | Yrd Mat Mat Sto Mat Slots Evolved 4 | . . 2 . 2 Power . | . . . . . Propulsion 2 | . . 2 . . Utility 2 | . . . . 2 Weapon . | . . . . . Parts Attached 26 | 6 2 . 6 12 Power 4 | 1 . . 1 2 Engine 4 | 1 . . 1 2 Core . | . . . . . Reactor . | . . . . . Propulsion 6 | 2 . . 2 2 Treads . | . . . . . Leg 6 | 2 . . 2 2 Wheel . | . . . . . Hover . | . . . . . Flight . | . . . . . Utility 7 | 1 1 . . 5 Device . | . . . . . Storage 2 | 1 . . . 1 Processor . | . . . . . Hackware . | . . . . . Protection 5 | . 1 . . 4 Artifact . | . . . . . Weapon 9 | 2 1 . 3 3 Energy Gun 2 | 1 . . 1 . Energy Cannon . | . . . . . Ballistic Gun 3 | 1 . . 2 . Ballistic Cannon . | . . . . . Launcher 4 | . 1 . . 3 Special Weapon . | . . . . . Impact Weapon . | . . . . . Slashing Weapon . | . . . . . Piercing Weapon . | . . . . . Special Melee Weapon . | . . . . . Unidentified Prototypes . | . . . . . Parts Lost 18 | . . . 1 17 Power 3 | . . . . 3 Propulsion 6 | . . . . 6 Utility 4 | . . . . 4 Weapon 5 | . . . 1 4 Highest Loss Streak 15 | . . . 1 15 To Critical Strikes . | . . . . . Average Backups 6 | 1 4 7 8 4 Power 1 | . 1 1 1 1 Propulsion . | . . . . . Utility 3 | . 1 4 4 2 Weapon 1 | . 1 2 2 . Tool/Special . | . . . . . Unused Backups 3 | . . . 1 2 Power 1 | . . . . 1 Propulsion . | . . . . . Utility 1 | . . . . 1 Weapon 1 | . . . 1 . Tool/Special . | . . . . . Average Slot Usage (%) 81 | . 95 77 80 73 Engine 10 | . 14 11 11 7 Leg 25 | . 28 22 25 23 Storage 11 | . 14 11 11 10 Protection 12 | . 9 11 11 18 Energy Gun 2 | . 1 . 1 6 Ballistic Gun 10 | . 14 11 11 5 Launcher 7 | . 12 11 9 . Peak Build Rating 19 | 6 7 8 13 19 Average Rating 8 | 4 6 7 8 11 On Entrance 6 | . 6 7 8 13 Avg Prop Armor Cover (%) . | . . . . . Naked Turns . | . . . . . Heaviest Build 27 | 10 13 13 19 27 Greatest Support 54 | 20 20 20 40 54 Greatest Overweight (x) 5 | 3 . . . 5 Average Overweight (x) . | . . . . . Largest Inventory Capacity 8 | 8 8 8 8 8 Average Capacity 7 | 7 8 8 8 8 Most Carried 8 | 2 7 8 8 7 Average Carried 6 | 1 4 7 7 4 Final Capacity 8 | 8 8 8 8 8 Final Carried 8 | 2 7 8 8 3 Class Distribution -------------------- 82% | Mutant 17% | Scavenger-Mutant Dominant Class ---------------- Mutant | -10/Materials Mutant | -9/Materials Mutant | -9/Storage Mutant | -8/Materials Resources | -11 -10 -9 -9 -8 ----------- Run | Yrd Mat Mat Sto Mat Matter Collected 633 | 153 . . 318 162 Remotely . | . . . . . Salvage Created 984 | . . . 432 552 Parts 78 | . . . 36 42 Haulers Intercepted 4 | . . . 3 1 Recyclers Shooed 6 | . . . 1 5 Parts Field Recycled . | . . . . . Retrieved Matter . | . . . . . Parts Self-Destructed . | . . . . . Prevented . | . . . . . Parts Restored . | . . . . . Kills | -11 -10 -9 -9 -8 ------- Run | Yrd Mat Mat Sto Mat Combat Hostiles Destroyed 26 | . . . 12 14 Guns 10 | . . . 2 8 AOE 16 | . . . 10 6 Classes Destroyed 9 | . . . 8 1 Worker 1 | . . . 1 . Builder 3 | . . . 2 1 Hauler 4 | . . . 3 1 Recycler 2 | . . . 1 1 Mechanic 1 | . . . . 1 Watcher 1 | . . . 1 . Swarmer 16 | . . . 5 11 Grunt 7 | . . . 4 3 Sentry 3 | . . . 3 . Best Kill Streak 10 | . . . 7 10 Combat Bots Only 6 | . . . 5 6 Max Kills in Single Turn 4 | . . . 4 4 Gunslinging . | . . . . . Exploded 3 | . . . 3 3 Melee . | . . . . . Uniques/NPCs Destroyed . | . . . . . Combat | -11 -10 -9 -9 -8 -------- Run | Yrd Mat Mat Sto Mat Hostile Shots Fired 303 | . . . 47 256 Missed 86 | . . . 12 74 Hits 217 | . . . 35 182 Projectile 217 | . . . 35 182 Critical Strikes 3 | . . . 2 1 Actively Blocked 1 | . . . 1 . Damage Taken 2330 | . . . 502 1828 Core 689 | . . . 138 551 Absorbed by Shields . | . . . . . Redirected to Shielding 141 | . . . 48 93 Core Remaining (%) 88 | 100 100 . 65 . Volleys Fired 53 | . . . 18 35 Largest 2 | . . . 2 2 Hottest 79 | . . . 53 79 Shots Fired 88 | . . . 34 54 Gun 66 | . . . 18 48 Cannon . | . . . . . Launcher 22 | . . . 16 6 Special . | . . . . . Kinetic 37 | . . . 18 19 Thermal 29 | . . . . 29 Explosive 16 | . . . 16 . Electromagnetic 6 | . . . . 6 Robot Hit Streak 7 | . . . 6 7 Robot Miss Streak 11 | . . . 2 11 Penetration Max . | . . . . . Secondary Targets . | . . . . . Shots Hit Robots 45 | . . . 23 22 Core Hits 60 | . . . 35 25 Critical Kills . | . . . . . Critical Parts Destroyed . | . . . . . Critical Strikes . | . . . . . Melee Attacks . | . . . . . Impact . | . . . . . Slashing . | . . . . . Piercing . | . . . . . Sneak Attacks . | . . . . . Combat Hostiles . | . . . . . Follow-up Attacks . | . . . . . Damage Inflicted 2205 | . . . 1162 1043 Guns 532 | . . . 123 409 Cannons . | . . . . . Explosions 1673 | . . . 1039 634 Melee . | . . . . . Ramming . | . . . . . Kinetic 283 | . . . 123 160 Thermal 313 | . . . . 313 Explosive 1039 | . . . 1039 . Electromagnetic 570 | . . . . 570 Impact . | . . . . . Slashing . | . . . . . Piercing . | . . . . . Highest Corruption 3 | . 3 . . 2 Average Corruption 2 | . 2 . . 2 Corruption Purged . | . . . . . Corruption Blocked . | . . . . . Effects 1 | . 1 . . . Message Errors 1 | . 1 . . . Overload Shots . | . . . . . Overflow Damage 17 | . . . 17 . Projectiles . | . . . . . Explosions 17 | . . . 17 . Melee . | . . . . . Knockbacks . | . . . . . Impact . | . . . . . Kinetic . | . . . . . Secondary . | . . . . . Self-Inflicted Damage 94 | . . . 94 . Shots 6 | . . . 6 . Rammed . | . . . . . Targets Rammed . | . . . . . Kicked . | . . . . . Crushed . | . . . . . Highest Temperature 224 | . . . 12 224 Average Temperature 69 | . . . 4 84 Received Heat Transfer 606 | . . . 147 459 Siege Activations . | . . . . . Martial Activations . | . . . . . Shielding Activations . | . . . . . Robots Disrupted . | . . . . . Combat Hostiles . | . . . . . Robots Corrupted . | . . . . . Combat Hostiles . | . . . . . Parts Fried 1 | . . . . 1 Impact Corruptions . | . . . . . Robots Melted . | . . . . . Combat Hostiles . | . . . . . Parts Melted 2 | . . . . 2 Heat Transferred 779 | . . . . 779 Parts Sabotaged . | . . . . . Parts Stolen . | . . . . . Parts Stripped . | . . . . . Power Chain Reactions 2 | . . . . 2 Alert | -11 -10 -9 -9 -8 ------- Run | Yrd Mat Mat Sto Mat Maximum Alert Level 1 | . . . 1 1 Low Security (%) 82 | 100 100 100 68 87 Level 1 17 | . . . 31 12 Level 2 . | . . . . . Level 3 . | . . . . . Level 4 . | . . . . . Level 5 . | . . . . . High Security . | . . . . . Max Security . | . . . . . Peak Influence 334 | . . . 334 248 Initial 128 | . . . . 128 Average 101 | . . . 137 158 Influence Increases 821 | . . . 454 367 Destroy 0b10 Robot/C 520 | . . . 240 280 Destroy 0b10 Robot/NC 60 | . . . 40 20 Destroy Leader 80 | . . . 58 22 Disable Machine 75 | . . . 30 45 Destroy Structure 86 | . . . 86 . Influence Decreases 586 | . . . 150 436 Entered New Map 176 | . . . . 176 Time Decay 230 | . . . 140 90 Lost Part 180 | . . . 10 170 Squads Dispatched 1 | . . . . 1 Investigation . | . . . . . Extermination . | . . . . . Reinforcement 1 | . . . . 1 Assault . | . . . . . Garrison . | . . . . . Intercept . | . . . . . Searches Triggered . | . . . . . Construction Impeded 1 | . . . . 1 Haulers Reinforced . | . . . . . Active Scanning Responses . | . . . . . Cargo Convoy Interrupts . | . . . . . Stealth | -11 -10 -9 -9 -8 --------- Run | Yrd Mat Mat Sto Mat Distress Signals 5 | . . 1 . 4 Communications Jammed . | . . . . . Distress Signals . | . . . . . Times Spotted 41 | . . 2 16 23 Peak Tracking Total 13 | . . 2 5 13 Tactical Retreats . | . . . . . Traps | -11 -10 -9 -9 -8 ------- Run | Yrd Mat Mat Sto Mat Traps Triggered 4 | . 2 . . 2 Indirectly 1 | . . . . 1 Trap Hack Attempts . | . . . . . Triggered . | . . . . . Disarmed . | . . . . . Reprogrammed . | . . . . . Reused . | . . . . . Traps Extracted . | . . . . . Installed . | . . . . . Triggered . | . . . . . Machines | -11 -10 -9 -9 -8 ---------- Run | Yrd Mat Mat Sto Mat Machines Disabled 5 | . . . 2 3 Max in Single Turn 2 | . . . 1 2 Machines Repaired . | . . . . . Machines Dismantled . | . . . . . Machines Sabotaged . | . . . . . Overloaded Fab Kills . | . . . . . Hacking | -11 -10 -9 -9 -8 --------- Run | Yrd Mat Mat Sto Mat Machines Accessed 1 | . . . 1 . Terminals 1 | . . . 1 . Fabricators . | . . . . . Repair Stations . | . . . . . Recycling Units . | . . . . . Scanalyzers . | . . . . . Garrison Access . | . . . . . Total Hacks 1 | . . . 1 . Successful . | . . . . . Failed 1 | . . . 1 . Catastrophic . | . . . . . Database Lockouts . | . . . . . Manual . | . . . . . Terminals 1 | . . . 1 . Fabricators . | . . . . . Repair Stations . | . . . . . Recycling Units . | . . . . . Scanalyzers . | . . . . . Garrison Access . | . . . . . Terminal Hacks . | . . . . . Fabricator Hacks . | . . . . . Repair Station Hacks . | . . . . . Recycling Unit Hacks . | . . . . . Scanalyzer . | . . . . . Garrison Access Hacks . | . . . . . Unauthorized Hacks . | . . . . . Terminals . | . . . . . Fabricators . | . . . . . Repair Stations . | . . . . . Recycling Units . | . . . . . Scanalyzers . | . . . . . Garrison Access . | . . . . . Data Cores Recovered . | . . . . . Used . | . . . . . Hacking Detections 1 | . . . 1 . Full Trace Events . | . . . . . Feedback Events . | . . . . . Feedback Blocked . | . . . . . Robot Schematics Acquired . | . . . . . Robots Built . | . . . . . Authchips . | . . . . . Time . | . . . . . Total Robot Build Rating . | . . . . . Part Schematics Acquired . | . . . . . Parts Built . | . . . . . Authchips . | . . . . . Time . | . . . . . Total Part Build Rating . | . . . . . Part Studies Acquired . | . . . . . Parts Repaired . | . . . . . Time . | . . . . . Parts Recycled . | . . . . . Recycled Matter . | . . . . . Retrieved Matter . | . . . . . Retrieved Components . | . . . . . Parts Scanalyzed . | . . . . . Part Schematics Acquired . | . . . . . Parts Damaged . | . . . . . Bothacking | -11 -10 -9 -9 -8 ------------ Run | Yrd Mat Mat Sto Mat Used RIF Installer . | . . . . . Robots Hacked . | . . . . . Non-combat . | . . . . . Combat . | . . . . . Robot Hacks Applied . | . . . . . Relay Couplers Released . | . . . . . Fabnet Peak Effective % . | . . . . . Robots Rewired . | . . . . . Allies Hacked . | . . . . . Hacks Repelled . | . . . . . Allies | -11 -10 -9 -9 -8 -------- Run | Yrd Mat Mat Sto Mat Total Allies . | . . . . . Largest Group . | . . . . . Highest-Rated Group . | . . . . . Highest-Rated Ally . | . . . . . Total Orders . | . . . . . Ally Attacks . | . . . . . Total Damage . | . . . . . Kills . | . . . . . Allies Corrupted . | . . . . . Allies Melted . | . . . . . Intel | -11 -10 -9 -9 -8 ------- Run | Yrd Mat Mat Sto Mat Active Infowar (turns) . | . . . . . Robot Analysis Total . | . . . . . Derelict Logs Recovered . | . . . . . Drone Launches . | . . . . . Drone Recoveries . | . . . . . Exploration | -11 -10 -9 -9 -8 ------------- Run | Yrd Mat Mat Sto Mat Turns Passed 808 | 54 154 33 370 197 Spaces Moved 509 | 36 123 27 254 69 Core 27 | 15 . . . 12 Treads . | . . . . . Legs 482 | 21 123 27 254 57 Wheels . | . . . . . Hover . | . . . . . Flight . | . . . . . Fastest Speed 50 | 50 120 120 120 100 Average Speed 121 | 121 120 120 120 131 Slowest Speed 300 | 200 120 120 120 300 Overloaded Moves . | . . . . . Propulsion Burnouts . | . . . . . Robots Hopped . | . . . . . Potential Cave-ins . | . . . . . Cave-ins Triggered . | . . . . . Exploration Rate (%) 17 | 4 27 5 37 13 Regions Visited 4 Branch Regions 1 Pre-discovered Areas . | . . . . . Known Exits Taken . | . . . . . Unknown Exits Taken 4 | 1 1 1 1 . Scrap Searched . | . . . . . Spaces Dug . | . . . . . Terrain Destroyed 75 | . . . 75 . Melee . | . . . . . Projectile . | . . . . . AOE 75 | . . . 75 . Terrain Rammed . | . . . . . Walls Destroyed . | . . . . . Machines Disabled . | . . . . . Actions | -11 -10 -9 -9 -8 --------- Run | Yrd Mat Mat Sto Mat Total 605 | 43 129 27 288 118 Wait 3 | . . . 3 . Move 505 | 35 122 26 253 69 Hop . | . . . . . Pick Up 11 | 2 4 1 3 1 Fast Attach 17 | 6 2 . 3 6 Attach 6 | . . . . 6 Detach 1 | . 1 . . . Swap 4 | . . . 3 1 Drop 5 | . . . 5 . Fire 53 | . . . 18 35 Melee . | . . . . . Ram . | . . . . . Kick . | . . . . . Crush . | . . . . . Escape Stasis . | . . . . . Rewire . | . . . . . Trap . | . . . . . Miscellaneous . | . . . . . Route ------- -11/Scrapyard -10/Materials -9/Materials -9/Storage -8/Materials History --------- Turn | Location | Event 21 | -11/Scrapyard | Discovered new exit (range 14) 55 | -11/Scrapyard | Entered Materials 191 | -10/Materials | Discovered new exit (range 15) 209 | -10/Materials | Entered another Materials area 209 | -9/Materials | Evolved 2 slots: Propulsion x2 209 | -9/Materials | Discovered new exit (range 8) 242 | -9/Materials | Entered Storage 301 | -9/Storage | Build established: Mutant 594 | -9/Storage | Discovered new exit (range 16) 612 | -9/Storage | Entered Materials 612 | -8/Materials | Evolved 2 slots: Utility x2 773 | -8/Materials | Core integrity fell below 50% 788 | -8/Materials | Core integrity fell below 20% 809 | -8/Materials | Destroyed by Y-45 Defender with Heavy Assault Rifle Last Messages --------------- K-01 Serf collects debris. R-06 Scavenger collects Corrupted Sml. Storage Unit. U-05 Engineer lays Concrete. G-47 Trooper misfires. Lgt. Ion Engine destroyed. Acquired Shock Bomb Launcher. U-05 Engineer lays Concrete. Terminal disabled. U-05 Engineer lays Concrete. K-01 Serf collects debris. A-02 Transporter destroyed. U-05 Engineer lays Concrete. R-06 Scavenger collects Corrupted Particle Gun. U-05 Engineer lays Concrete. K-01 Serf collects debris. R-06 Scavenger collects Corrupted Lgt. Ion Engine. U-05 Engineer lays Concrete. Acquired Shock Bomb Launcher. Map ----- +----------------------------------------------------+ | ?????????????????????????????????????????????????? | | ?????????????????????????????????????????????????? | | ?????????????????????????????????#???????????????? | | ???????????????#???????????????? +???????????????? | | ???????????????# ??????????????? #???????????????? | | ????????????? # ???????????? #???????????????? | | ?????????????? # ???????????? #???????????????? | | ???????????????+ +??????????? #???????????????? | | ???????????????# #?????????? #???????????????? | | ???????????????# % #?????????? #???????????????? | | ???????######### ########### +???????????????? | | ???????? % =[%*! #???????????????? | | ???????? [[[ #???????????????? | | ????? r=! #???????????????? | | ?????"" """ #???????????????? | | ?????"" """ "^ ######??????????? | | ??? """ """ " u% ?????????? | | ???? "" = " ?????????? | | ????? %r %%% ???????? | | ???????? "Y" r u % %[[ ???????? | | ??????? """ Y =! g= ???????? | | ?????????#### ^ ^ k[[!= ###??????????? | | ????????????# =! g=%! " #????????????? | | ????????????# ^ ! ] """ #????????????? | | ############# ! """ #????????? | | !]@ r????????? | | #????????? | | #????????? | | ############# w ?????????? | | #########???###+###### ?????????? | | #???? ? ???# ??????????? | | #??? ????" ?# T ??????????? | | #??#???????" # " ??????????? | | #????????????# ######???????????? | | #????????????# #????????????????? | | #????????????## #????????????????? | | #?????????????# """ ?????????????????? | | #?????????????# """ ?????????????????? | | #########?????????????# "??? ?????????????????? | | ?????????????????????? ??????????????????????? | | ??????????????????????? ??????????????????????? | | ?????????????????????????????????????????????????? | | ?????????????????????????????????????????????????? | | ?????????????????????????????????????????????????? | | ?????????????????????????????????????????????????? | | ?????????????????????????????????????????????????? | | ?????????????????????????????????????????????????? | | ?????????????????????????????????????????????????? | | ?????????????????????????????????????????????????? | | ?????????????????????????????????????????????????? | +----------------------------------------------------+ Best States ------------- Heat Dissipation 31 Energy Generation 12 Energy Capacity 325 Matter Stores 300 Matter Capacity 300 Sight Range 16 Terrain Scan Density 10 Armor Coverage 225 Propulsion Shielding 33 Utility Shielding 33 Evasion (%) 55 Item Schematics ----------------- None Robot Schematics ------------------ None Fabricated ------------ Nothing Repaired ---------- Nothing Studied --------- None Alien Tech Used ----------------- None Achievements -------------- Hey, That's Mine! Challenges ------------ None Game ------ Seed MetaWeaponShielding Manual? 0 Play Time 00:12:22 Cumulative 29.4 hours Start 2026.09.11 @ 21:38:41 End 2026.09.11 @ 21:51:14 Sessions 1 Manual Loads 0 Difficulty Rogue Special Mode None Game No. 44 Rogue 44 Adventurer 0 Explorer 0 Win Type - Total 0 Types 0/0/0/0/0/0/0/0/0/0 Lore% 23 Gallery% 20 Achievement% 17 Wizard Run 0 Options --------- Layout 1 ASCII 0 Keyboard 0 Movement Mouse Keybinds 0 Fullscreen 1 Font 16/SmallcapsGlow Map View 50x40 Zoom Use 0% Tactical HUD 0 Map Filters NONE Filters NONE Steam SD RUN: 8b7bccbb-a14c-4158-89ce-dd1c270165d0